bitfinex/quotes_SOLUSD_20250920
["timestamp","ask_amount","ask_price","bid_price","bid_amount"]
[1758384646267,1.43985599,241.36,241.33,0.68]
[1758384646649,1.43985599,241.36,241.34,32.44]
[1758384646873,5.58317331,241.36,241.34,32.44]
[1758384648079,1.43985599,241.35,241.34,32.44]
[1758384648258,2.11985599,241.35,241.34,32.44]
[1758384648865,37.46321625,241.35,241.34,32.44]
[1758384650691,47.82161691,241.35,241.31,32.42]
[1758384650867,1.43985599,241.32,241.31,32.42]
[1758384651382,1.43985599,241.32,241.22,12.46028285]
[1758384651572,2.11985599,241.32,241.26,0.68]
[1758384651888,2.11985599,241.32,241.27,32.42]
[1758384652070,2.11985599,241.32,241.27,33.1]
[1758384652790,4.14404707,241.31,241.27,33.1]
[1758384652995,4.82404707,241.31,241.27,33.1]
[1758384653291,1.43985599,241.3,241.27,33.1]
[1758384653672,1.43985599,241.3,241.27,32.42]
[1758384653871,1.43985599,241.3,241.27,33.1]
[1758384654172,4.14439056,241.29,241.27,32.4]
[1758384654374,1.43985599,241.28,241.26,32.4]
[1758384656091,2.12985599,241.28,241.26,32.4]
[1758384656278,4.14473411,241.27,241.26,32.4]
[1758384657588,4.83473411,241.27,241.26,32.4]
[1758384657897,15.19656939,241.27,241.24,32.38]
[1758384658086,1.43985599,241.26,241.24,32.38]
[1758384658696,2.12985599,241.26,241.24,32.38]
[1758384658893,0.69,241.25,241.22,32.36]
[1758384659094,1.43985599,241.24,241.22,32.36]
[1758384659262,1.43985599,241.24,241.22,33.08]
[1758384659465,4.14542138,241.23,241.22,33.08]
[1758384660066,4.14542138,241.23,241.22,32.38]
[1758384661899,4.14542138,241.23,241.22,33.1]
[1758384662199,4.14542138,241.23,241.22,0.72]
[1758384662368,4.14542138,241.23,241.22,33.1]
[1758384663802,2.24881766,241.24,241.22,33.1]
[1758384665170,7.05423904,241.23,241.22,32.38]
[1758384665500,6.39423904,241.23,241.22,32.38]
[1758384666300,6.39423904,241.23,241.19,0.69]
[1758384666301,6.39423904,241.23,241.2,32.34]
[1758384666477,2.24881766,241.22,241.2,32.34]
[1758384666796,2.90881766,241.21,241.18,32.34]
[1758384666973,2.24881766,241.19,241.18,32.34]
[1758384667174,6.39492653,241.19,241.18,32.34]
[1758384668002,7.05492653,241.19,241.18,32.34]
[1758384668188,20.20302133,241.19,241.14,32.34]
[1758384668378,2.24881766,241.15,241.14,32.34]
[1758384669075,6.39561425,241.15,241.14,32.34]
[1758384669909,17.42260574,241.15,241.11,0.1]
[1758384670085,2.24881766,241.13,241.12,32.34]
[1758384671400,6.3959582,241.13,241.12,32.34]
[1758384671974,6.3959582,241.13,241.11,0.1]
[1758384673305,7.0559582,241.13,241.11,0.1]
[1758384673489,6.3959582,241.13,241.11,0.1]
[1758384674910,2.24881766,241.12,241.11,0.1]
[1758384675271,6.3961302,241.12,241.11,0.1]
[1758384679008,2.24881766,241.12,241.11,0.1]
[1758384679188,4.14696856,241.14,241.11,0.1]
[1758384679504,6.39578622,241.14,241.11,0.79]
[1758384679688,2.24881766,241.13,241.11,0.79]
[1758384681011,6.39609745,241.13,241.11,0.79]
[1758384681211,133.4,241.21,241.11,4.93748075]
[1758384681411,2.24881766,241.18,241.11,4.93748075]
[1758384681617,2.24881766,241.18,241.12,0.69]
[1758384681789,33.44881766,241.18,241.12,0.69]
[1758384683902,37.59525834,241.18,241.12,0.69]
[1758384684205,37.59525834,241.18,241.12,4.83729376]
[1758384684402,37.59525834,241.18,241.13,0.69]
[1758384684605,37.59525834,241.18,241.14,0.69]
[1758384684803,38.25525834,241.18,241.14,0.69]
[1758384685916,166.84881766,241.21,241.15,0.66]
[1758384686211,4.14524954,241.24,241.16,13.59559401]
[1758384686416,38.11162777,241.26,241.18,2.24881766]
[1758384686599,2.24881766,241.22,241.19,32.28]
[1758384686910,2.24881766,241.2,241.17,32.28]
[1758384687087,0.67,241.19,241.17,32.28]
[1758384687490,2.24881766,241.2,241.17,32.28]
[1758384687715,0.67,241.21,241.17,32.28]
[1758384687920,0.67,241.2,241.17,32.28]
[1758384688415,4.81594771,241.2,241.17,32.28]
[1758384689614,0.67,241.19,241.17,32.28]
[1758384691322,4.81614391,241.19,241.17,32.28]
[1758384691801,4.81614391,241.19,241.17,32.26]
[1758384696506,0.67,241.19,241.17,32.26]
[1758384697302,6.91891058,241.2,241.17,32.26]
[1758384697509,7.58891058,241.2,241.17,32.26]
[1758384697708,7.58891058,241.2,241.15,0.66]
[1758384697930,7.58891058,241.2,241.16,32.22]
[1758384698129,7.58891058,241.2,241.16,32.88]
[1758384699737,2.77289668,241.2,241.18,2.24881766]
[1758384699908,2.77289668,241.22,241.19,0.66]
[1758384700109,2.77289668,241.22,241.2,34.44881766]
[1758384700310,2.77289668,241.24,241.21,0.66]
[1758384700816,2.77289668,241.24,241.22,0.66]
[1758384701406,2.77289668,241.24,241.22,32.2]
[1758384701407,3.44289668,241.24,241.22,32.2]
[1758384702946,7.58815048,241.24,241.22,32.2]
[1758384705210,2.77289668,241.24,241.22,32.2]
[1758384705535,2.77289668,241.24,241.22,32.18]
[1758384707022,2.77289668,241.24,241.22,32.84]
[1758384707337,2.77289668,241.24,241.22,32.18]
[1758384709550,7.58819808,241.24,241.22,32.18]
[1758384710022,0.67,241.23,241.22,32.18]
[1758384710339,6.91819808,241.24,241.22,32.18]
[1758384712236,6.91819808,241.24,241.2,0.66]
[1758384712439,6.91819808,241.24,241.22,32.14]
[1758384712824,7.58819808,241.24,241.22,32.14]
[1758384713023,6.91819808,241.24,241.22,32.14]
[1758384713229,0.67,241.23,241.22,32.14]
[1758384714072,0.67,241.23,241.19,2.90881766]
[1758384714250,0.67,241.23,241.22,32.12]
[1758384714552,6.91819808,241.24,241.22,32.12]
[1758384715050,7.58819808,241.24,241.22,32.12]
[1758384715651,6.91819808,241.24,241.22,32.12]
[1758384715828,6.91819808,241.24,241.22,32.78]
[1758384716030,2.77289668,241.24,241.22,32.78]
[1758384716224,2.77289668,241.24,241.22,32.12]
[1758384716433,31.2,241.27,241.23,0.68]
[1758384716729,2.77289668,241.26,241.24,0.68]
[1758384717134,2.77289668,241.27,241.24,0.68]
[1758384717452,6.91763166,241.27,241.22,32.12]
[1758384717656,31.2,241.24,241.21,32.14]
[1758384717858,3.46289668,241.23,241.21,32.14]
[1758384719461,7.60840993,241.23,241.21,32.14]
[1758384719837,6.91840993,241.23,241.21,32.14]
[1758384720158,6.91840993,241.23,241.19,0.71]
[1758384720367,6.91840993,241.23,241.21,32.14]
[1758384721172,7.60840993,241.23,241.18,0.71]
[1758384721466,6.91840993,241.23,241.21,32.14]
[1758384721672,6.91840993,241.23,241.21,32.85]
[1758384721964,2.77289668,241.23,241.21,32.85]
[1758384722336,2.77289668,241.23,241.22,0.71]
[1758384723339,6.9178554,241.26,241.22,0.71]
[1758384723642,7.60809871,241.25,241.23,32.12]
[1758384723841,2.77289668,241.24,241.23,32.12]
[1758384725369,2.77289668,241.24,241.21,0.71]
[1758384725574,4.14520203,241.25,241.23,32.14]
[1758384725772,2.79106134,241.24,241.23,32.14]
[1758384728476,2.79106134,241.24,241.21,0.71]
[1758384728663,2.79106134,241.23,241.22,32.81]
[1758384730277,2.79106134,241.23,241.22,0.71]
[1758384730572,2.79106134,241.23,241.22,32.81]
[1758384732369,2.79106134,241.23,241.22,0.71]
[1758384732562,2.79106134,241.23,241.22,32.81]
[1758384732764,2.79106134,241.23,241.22,32.79]
[1758384734488,3.48106134,241.23,241.22,32.08]
[1758384735269,3.48106134,241.23,241.22,32.06]
[1758384736167,7.62648272,241.23,241.19,0.71]
[1758384736478,7.62648272,241.23,241.2,32.06]
[1758384736479,3.48106134,241.22,241.2,32.06]
[1758384736680,2.79106134,241.21,241.2,32.06]
[1758384737291,2.79106134,241.21,241.2,32.08]
[1758384738166,6.93688132,241.21,241.17,0.71]
[1758384738371,3.48106134,241.2,241.15,14.30559401]
[1758384738582,2.79106134,241.19,241.18,32.06]
[1758384738786,3.48106134,241.19,241.18,32.06]
[1758384739102,2.79106134,241.19,241.18,32.06]
[1758384739296,3.48106134,241.19,241.17,32.08]
[1758384739469,2.79106134,241.18,241.17,32.08]
[1758384739894,6.93734212,241.18,241.17,32.08]
[1758384740489,6.94319653,241.18,241.17,32.08]
[1758384740797,6.94319653,241.18,241.15,0.71]
[1758384741006,2.79691575,241.17,241.16,32.06]
[1758384741999,7.63336845,241.17,241.16,32.06]
[1758384742375,6.94336845,241.17,241.13,0.71]
[1758384742576,2.79691575,241.16,241.14,32.06]
[1758384742885,2.79691575,241.15,241.14,32.06]
[1758384743889,6.94371234,241.15,241.14,32.06]
[1758384744498,6.94371234,241.15,241.13,32.06]
[1758384744706,2.79691575,241.14,241.13,32.06]
[1758384745203,2.79691575,241.14,241.11,2.249108]
[1758384745402,4.14679659,241.15,241.13,32.06]
[1758384745593,2.79591189,241.14,241.13,32.06]
[1758384746179,2.79591189,241.14,241.11,0.1]
[1758384746501,2.79591189,241.13,241.12,32.06]
[1758384746811,2.79591189,241.13,241.11,0.1]
[1758384746979,2.79591189,241.12,241.11,32.16]
[1758384747180,2.79591189,241.13,241.11,0.1]
[1758384747389,6.94322443,241.12,241.11,0.1]
[1758384748398,4.14731254,241.12,241.11,0.1]
[1758384748595,6.94322443,241.12,241.11,0.1]
[1758384748790,4.14731254,241.12,241.11,0.1]
[1758384748990,6.94322443,241.12,241.11,0.1]
[1758384749205,4.85731254,241.12,241.11,0.1]
[1758384749382,6.94322443,241.12,241.11,0.1]
[1758384749581,4.14731254,241.12,241.11,0.1]
[1758384749790,6.94322443,241.12,241.11,0.1]
[1758384750814,4.85731254,241.12,241.11,0.1]
[1758384750992,7.65322443,241.12,241.11,0.1]
[1758384751380,4.85731254,241.12,241.11,0.1]
[1758384752296,7.65322443,241.12,241.11,0.1]
[1758384752497,4.85731254,241.12,241.11,0.1]
[1758384752805,2.79591189,241.13,241.11,0.76]
[1758384753006,4.14714054,241.13,241.12,0.66]
[1758384753305,6.94305243,241.13,241.12,0.66]
[1758384753803,6.94305243,241.13,241.11,0.1]
[1758384754012,6.94322443,241.12,241.11,0.1]
[1758384754389,4.14731254,241.12,241.11,0.1]
[1758384755107,4.1471494,241.13,241.11,0.1]
[1758384756404,2.78644228,241.14,241.11,0.1]
[1758384756612,2.78644228,241.15,241.12,0.66]
[1758384758289,2.78644228,241.15,241.13,0.66]
[1758384758997,2.78644228,241.16,241.13,0.66]
[1758384760288,2.78644228,241.16,241.12,32.02]
[1758384760589,2.78644228,241.16,241.13,0.66]
[1758384760807,2.78644228,241.16,241.14,0.66]
[1758384761011,0.71,241.15,241.12,32.02]
[1758384761210,3.49644228,241.15,241.12,32.02]
[1758384761413,35.34669346,241.16,241.12,32.68]
[1758384761611,2.78644228,241.15,241.12,32.68]
[1758384762111,2.78644228,241.15,241.13,0.66]
[1758384762621,2.78644228,241.15,241.13,32.02]
[1758384763218,6.93324901,241.15,241.13,32.02]
[1758384763421,7.64324901,241.15,241.13,32.02]
[1758384764314,0.71,241.14,241.12,32.02]
[1758384765216,0.71,241.14,241.11,0.1]
[1758384765398,0.71,241.14,241.12,32.02]
[1758384765799,4.85701176,241.14,241.12,32.02]
[1758384766307,0.71,241.13,241.11,0.1]
[1758384766720,3.49644228,241.13,241.11,0.1]
[1758384766897,0.71,241.13,241.11,0.1]
[1758384767314,4.85729885,241.13,241.11,0.1]
[1758384767495,0.71,241.12,241.11,0.1]
[1758384769417,4.85731254,241.12,241.11,0.1]
[1758384774152,2.78644228,241.13,241.11,0.1]
[1758384774341,0.71,241.12,241.11,0.1]
[1758384775217,3.49644228,241.12,241.11,0.1]
[1758384776035,7.64375482,241.12,241.11,0.1]
[1758384776341,4.85731254,241.12,241.11,0.1]
[1758384776633,7.64375482,241.12,241.11,0.1]
[1758384776937,4.85731254,241.12,241.11,0.1]
[1758384777118,7.64375482,241.12,241.11,0.1]
[1758384778444,9.08286282,241.12,241.11,0.1]
[1758384782451,19.45000575,241.12,241.11,0.1]
[1758384783337,22.55132593,241.12,241.11,0.1]
[1758384784247,26.03437879,241.12,241.11,0.1]
[1758384785750,26.84669709,241.12,241.11,0.1]
[1758384789256,24.59527079,241.12,241.11,0.1]
[1758384789457,26.84669709,241.12,241.11,0.1]
[1758384790760,26.84858636,241.12,241.11,0.1]
[1758384791958,26.84858636,241.12,241.09,0.2]
[1758384791959,31.2,241.1,241.09,0.2]
[1758384792139,42.83171667,241.1,241.09,0.2]
[1758384792334,43.53171667,241.1,241.09,0.2]
[1758384792655,45.19488375,241.1,241.09,0.2]
[1758384793430,49.34254032,241.1,241.09,0.2]
[1758384794156,47.09111402,241.1,241.09,0.2]
[1758384794350,48.64254032,241.1,241.09,0.2]
[1758384795160,45.15190168,241.1,241.09,0.2]
[1758384795337,49.34254032,241.1,241.09,0.2]
[1758384795538,45.85190168,241.1,241.09,0.2]
[1758384796560,49.34254032,241.1,241.09,0.2]
[1758384798752,81.36254032,241.1,241.09,0.2]
[1758384799467,49.34254032,241.1,241.09,0.2]
[1758384799670,81.36254032,241.1,241.09,0.2]
[1758384801071,49.34254032,241.1,241.09,0.2]
[1758384801371,81.36254032,241.1,241.09,0.2]
[1758384801570,49.34254032,241.1,241.09,0.2]
[1758384805365,81.36254032,241.1,241.09,0.2]
[1758384805566,77.87190168,241.1,241.09,0.2]
[1758384807052,88.24104311,241.1,241.05,0.69]
[1758384807373,2.2514263,241.06,241.04,0.2]
[1758384807558,5.88965173,241.05,241.04,0.2]
[1758384807752,5.88965173,241.05,241.04,0.91]
[1758384808073,10.03816863,241.05,241.04,0.91]
[1758384808672,10.03816863,241.05,241.04,0.2]
[1758384808972,10.03816863,241.05,241.04,0.91]
[1758384810285,10.03816863,241.05,241.04,0.2]
[1758384810456,12.28959493,241.05,241.04,0.2]
[1758384810657,12.28959493,241.05,241.04,0.91]
[1758384813574,10.03816863,241.05,241.04,0.91]
[1758384813878,12.28959493,241.05,241.04,0.2]
[1758384814083,12.99959493,241.05,241.04,0.2]
[1758384814256,48.50698606,241.05,241.04,0.2]
[1758384814664,16.48698606,241.05,241.04,0.2]
[1758384814876,12.99959493,241.05,241.04,0.2]
[1758384816159,15.25102123,241.05,241.04,0.2]
[1758384816885,46.45102123,241.05,241.04,0.2]
[1758384817061,15.25102123,241.05,241.04,0.2]
[1758384818064,18.73841236,241.05,241.04,0.2]
[1758384818578,16.48472168,241.05,241.04,0.2]
[1758384818784,18.73614798,241.05,241.04,0.2]
[1758384820968,8.13881365,241.05,241.04,0.91]
[1758384821167,39.33881365,241.05,241.04,0.91]
[1758384821375,37.08738735,241.05,241.04,0.91]
[1758384821786,41.23590425,241.05,241.04,0.91]
[1758384822570,5.88738735,241.05,241.04,0.91]
[1758384822870,33.4514263,241.07,241.04,3.1614263]
[1758384823070,5.88974634,241.06,241.05,0.71]
[1758384823890,4.14901712,241.08,241.05,0.71]
[1758384823891,2.78644228,241.07,241.05,0.71]
[1758384824191,2.78644228,241.06,241.05,0.71]
[1758384825399,2.78644228,241.06,241.05,2.9614263]
[1758384826581,2.78644228,241.06,241.05,0.71]
[1758384832812,2.78644228,241.06,241.04,0.91]
[1758384832971,2.78644228,241.05,241.04,0.91]
[1758384837505,2.78644228,241.05,241.04,0.2]
[1758384837682,5.89892271,241.05,241.04,0.2]
[1758384838788,10.04743961,241.05,241.04,0.2]
[1758384841289,10.70743961,241.05,241.04,0.2]
[1758384841490,12.95886591,241.05,241.04,0.2]
[1758384841796,13.05886591,241.05,241.04,0.2]
[1758384842388,10.70743961,241.05,241.04,0.2]
[1758384843687,12.95886591,241.05,241.04,0.2]
[1758384845095,10.70743961,241.05,241.04,0.2]
[1758384846806,12.95886591,241.05,241.04,0.2]
[1758384847821,12.1490959,241.05,241.04,0.2]
[1758384848193,31.2,241.02,241.01,0.1]
[1758384848396,38.540579,241.02,241.01,0.1]
[1758384848606,39.260579,241.02,241.01,0.1]
[1758384849216,55.888035,241.02,241.01,0.1]
[1758384853335,55.888035,241.02,241.01,1e-08]
[1758384854827,87.888035,241.02,241.01,1e-08]
[1758384859234,53.72637871,241.02,241.01,0.70000001]
[1758384859439,55.168035,241.02,241.01,0.70000001]
[1758384860014,55.168035,241.02,241.01,1e-08]
[1758384861427,53.72637871,241.02,241.01,1e-08]
[1758384861744,55.168035,241.02,241.01,1e-08]
[1758384863020,55.888035,241.02,241.01,1e-08]
[1758384866051,87.888035,241.02,241.01,1e-08]
[1758384868260,55.168035,241.02,241.01,0.69000001]
[1758384868758,55.168035,241.02,241.01,1e-08]
[1758384869158,55.888035,241.02,241.01,1e-08]
[1758384871265,87.168035,241.02,241.01,1e-08]
[1758384872261,5.89892271,241.02,241.01,0.69000001]
[1758384872564,3.10469508,241.02,241.01,0.69000001]
[1758384872745,5.89892271,241.02,241.01,0.69000001]
[1758384872946,2.79422763,241.02,241.01,0.69000001]
[1758384873969,6.9432609,241.02,241.01,0.69000001]
[1758384874170,5.89209634,241.02,241.01,0.69000001]
[1758384874654,10.04112961,241.02,241.01,0.69000001]
[1758384876447,6.9432609,241.02,241.01,0.69000001]
[1758384876651,10.04103391,241.02,241.01,0.69000001]
[1758384877365,2.79422763,241.02,241.01,2.1316563]
[1758384877570,2.79422763,241.03,241.01,6.28086172]
[1758384877764,133.4,241.04,241.02,2.13165629]
[1758384878072,133.4,241.04,241.03,2.13165629]
[1758384878254,136.18890713,241.04,241.03,2.13165629]
[1758384878453,2.78890713,241.04,241.03,2.13165629]
[1758384878656,2.78890713,241.05,241.03,2.13165629]
[1758384878862,31.2,241.06,241.04,0.69]
[1758384879166,2.78890713,241.05,241.04,0.69]
[1758384879381,2.78890713,241.05,241.03,1.44165629]
[1758384879973,2.78890713,241.05,241.04,0.69]
[1758384882048,6.93742403,241.05,241.01,0.69000001]
[1758384882253,2.78890713,241.04,241.02,0.69]
[1758384882468,6.93742403,241.05,241.02,0.69]
[1758384883176,6.93759614,241.04,241.03,0.69]
[1758384883476,4.14868901,241.04,241.03,0.69]
[1758384883656,6.93759614,241.04,241.03,0.69]
[1758384883845,4.14868901,241.04,241.03,0.69]
[1758384884042,6.93759614,241.04,241.03,0.69]
[1758384884246,4.14868901,241.04,241.03,0.69]
[1758384884478,6.93759614,241.04,241.03,0.69]
[1758384884850,4.14868901,241.04,241.03,0.69]
[1758384885149,6.93759614,241.04,241.03,0.69]
[1758384885349,6.93759614,241.04,241.01,1e-08]
[1758384885350,4.14868901,241.04,241.01,0.69000001]
[1758384885674,6.93759614,241.04,241.02,0.69]
[1758384885852,2.78890713,241.03,241.02,0.69]
[1758384886163,4.14868901,241.04,241.02,0.69]
[1758384886369,6.93759614,241.04,241.02,0.69]
[1758384886548,2.78890713,241.03,241.02,0.69]
[1758384886870,4.14868901,241.04,241.02,0.69]
[1758384887070,6.93759614,241.04,241.02,0.69]
[1758384887242,6.93776826,241.03,241.02,0.69]
[1758384887446,4.14886113,241.03,241.02,0.69]
[1758384887646,4.14886113,241.03,241.01,1e-08]
[1758384887869,4.14886113,241.03,241.01,0.69000001]
[1758384888267,2.78890713,241.03,241.01,0.69000001]
[1758384888466,4.14868901,241.04,241.01,0.69000001]
[1758384888672,6.93759614,241.04,241.01,0.69000001]
[1758384888872,2.78890713,241.03,241.01,0.69000001]
[1758384889468,6.93788214,241.03,241.01,0.69000001]
[1758384889670,4.14897501,241.03,241.01,1e-08]
[1758384889856,2.79017494,241.02,241.01,1e-08]
[1758384890664,8.05166267,241.02,241.01,1e-08]
[1758384891057,12.20063768,241.02,241.01,1e-08]
[1758384891463,16.34967095,241.02,241.01,1e-08]
[1758384891978,47.54967095,241.02,241.01,1e-08]
[1758384897181,48.32967095,241.02,241.01,1e-08]
[1758384900766,47.60967095,241.02,241.01,1e-08]
[1758384900960,14.18801466,241.02,241.01,0.69000001]
[1758384901161,14.18801466,241.02,241.01,1e-08]
[1758384901373,15.62967095,241.02,241.01,1e-08]
[1758384901989,16.33967095,241.02,241.01,1e-08]
[1758384903290,48.31967095,241.02,241.01,1e-08]
[1758384903877,51.81036396,241.02,241.01,1e-08]
[1758384907568,51.10036396,241.02,241.01,1e-08]
[1758384908390,19.84036396,241.02,241.01,1e-08]
[1758384908584,51.82036396,241.02,241.01,1e-08]
[1758384908898,51.10036396,241.02,241.01,1e-08]
[1758384909398,49.65870767,241.02,241.01,1e-08]
[1758384909588,51.10036396,241.02,241.01,1e-08]
[1758384909794,51.91200498,241.02,241.01,1e-08]
[1758384910271,17.67870767,241.02,241.01,1e-08]
[1758384910474,19.93200498,241.02,241.01,1e-08]
[1758384911086,19.93324989,241.02,241.01,1e-08]
[1758384912097,16.44255688,241.02,241.01,1e-08]
[1758384913296,17.16255688,241.02,241.01,1e-08]
[1758384918801,16.44255688,241.02,241.01,1e-08]
[1758384919704,17.16255688,241.02,241.01,1e-08]
[1758384922379,20.65324989,241.02,241.01,1e-08]
[1758384923306,17.16255688,241.02,241.01,1e-08]
[1758384923807,16.44255688,241.02,241.01,1e-08]
[1758384924116,48.42255688,241.02,241.01,1e-08]
[1758384924336,51.90949485,241.02,241.01,1e-08]
[1758384925588,19.92949485,241.02,241.01,1e-08]
[1758384925796,51.90949485,241.02,241.01,1e-08]
[1758384925996,52.60949485,241.02,241.01,1e-08]
[1758384929516,31.2,240.99,240.96,0.89]
[1758384929711,5.89125129,240.98,240.96,0.89]
[1758384930011,5.89125129,240.97,240.96,0.2]
[1758384930416,5.89125129,240.97,240.96,0.89]
[1758384930715,5.89350353,240.97,240.96,0.89]
[1758384931211,5.89350353,240.97,240.96,0.2]
[1758384931395,10.0433977,240.97,240.96,0.2]
[1758384931595,11.7075335,240.97,240.96,0.89]
[1758384932900,11.7075335,240.97,240.96,0.2]
[1758384933100,11.7075335,240.97,240.96,0.89]
[1758384934530,13.96083081,240.97,240.96,0.2]
[1758384934700,14.66083081,240.97,240.96,0.2]
[1758384934896,18.15140899,240.97,240.96,0.2]
[1758384935418,14.66083081,240.97,240.96,0.2]
[1758384936491,46.62083081,240.97,240.96,0.2]
[1758384937520,45.92083081,240.97,240.96,0.2]
[1758384939408,13.96083081,240.97,240.96,0.2]
[1758384939715,45.92083081,240.97,240.96,0.2]
[1758384940027,46.62083081,240.97,240.96,0.2]
[1758384941634,47.16467889,240.97,240.96,0.2]
[1758384941927,45.92083081,240.97,240.96,0.2]
[1758384942237,49.4179762,240.97,240.96,0.2]
[1758384942732,15.20939009,240.97,240.96,0.2]
[1758384942897,11.7122447,240.97,240.96,0.2]
[1758384943093,13.96554201,240.97,240.96,0.2]
[1758384944036,13.96554201,240.97,240.96,0.89]
[1758384944221,13.96554201,240.97,240.96,0.2]
[1758384945537,7.56235053,240.97,240.96,0.89]
[1758384945723,5.89821473,240.97,240.96,0.89]
[1758384945931,10.0481089,240.97,240.96,0.89]
[1758384947525,13.54525429,240.97,240.96,0.89]
[1758384951439,42.7081089,240.97,240.95,0.2]
[1758384951614,8.15151204,240.96,240.95,0.2]
[1758384952034,8.85151204,240.96,240.95,0.2]
[1758384952235,42.84938087,240.96,240.95,0.2]
[1758384952436,45.16592196,240.96,240.95,0.89]
[1758384952934,45.16592196,240.96,240.95,0.2]
[1758384954408,48.66362818,240.96,240.95,0.2]
[1758384954632,48.66467934,240.96,240.95,0.2]
[1758384957035,49.33467934,240.96,240.95,0.2]
[1758384957219,48.66467934,240.96,240.95,0.2]
[1758384960235,49.33467934,240.96,240.95,0.2]
[1758384960441,45.83697312,240.96,240.95,0.2]
[1758384961540,46.59697312,240.96,240.95,0.2]
[1758384961714,46.59697312,240.96,240.94,0.2]
[1758384961920,5.89926589,240.95,240.94,0.2]
[1758384962544,12.38384804,240.95,240.94,0.2]
[1758384962915,14.63714535,240.95,240.94,0.2]
[1758384963240,13.96714535,240.95,240.94,0.2]
[1758384963831,45.92714535,240.95,240.94,0.2]
[1758384965125,45.92657187,240.95,240.94,0.2]
[1758384965322,13.96657187,240.95,240.94,0.2]
[1758384966435,13.96657187,240.95,240.93,0.2]
[1758384966757,11.64884377,240.94,240.93,0.2]
[1758384967149,13.31318729,240.94,240.93,0.2]
[1758384967763,17.46359818,240.94,240.93,0.2]
[1758384968067,48.66359818,240.94,240.93,0.91]
[1758384968274,5.89869241,240.94,240.93,0.91]
[1758384969260,10.0491033,240.94,240.93,0.91]
[1758384969774,10.0491033,240.94,240.93,0.2]
[1758384969941,10.0491033,240.94,240.93,0.91]
[1758384970946,10.0491033,240.94,240.93,0.2]
[1758384971157,12.30240061,240.94,240.93,0.2]
[1758384971455,45.16674413,240.94,240.93,0.2]
[1758384971854,44.35637043,240.94,240.93,0.2]
[1758384974062,45.04637043,240.94,240.93,0.2]
[1758384974239,48.54322448,240.94,240.93,0.2]
[1758384974445,45.04637043,240.94,240.93,0.2]
[1758384975150,13.84637043,240.94,240.93,0.2]
[1758384976960,10.73785296,240.94,240.93,0.2]
[1758384977144,13.84698829,240.94,240.93,0.2]
[1758384978863,45.04698829,240.94,240.93,0.2]
[1758384979051,13.84698829,240.94,240.93,0.2]
[1758384979640,31.2,240.93,240.91,0.1]
[1758384979839,31.2,240.9,240.89,0.2]
[1758384980043,38.54223388,240.9,240.89,0.2]
[1758384980469,40.20678518,240.9,240.89,0.2]
[1758384981147,44.35788522,240.9,240.89,0.2]
[1758384981558,1.44292361,240.88,240.86,0.91]
[1758384981764,5.89931027,240.87,240.86,0.2]
[1758384982342,5.89931027,240.87,240.86,0.91]
[1758384983145,10.05092732,240.87,240.86,0.2]
[1758384983563,10.05092732,240.87,240.86,0.91]
[1758384983956,11.71568645,240.87,240.86,0.91]
[1758384984743,11.71568645,240.87,240.86,0.2]
[1758384986774,7.5640694,240.87,240.86,0.2]
[1758384986960,11.71568645,240.87,240.86,0.89]
[1758384990068,11.71568645,240.87,240.86,0.2]
[1758384990374,11.71568645,240.87,240.86,0.89]
[1758384991453,11.71568645,240.87,240.86,0.2]
[1758384995269,5.89931027,240.87,240.86,0.89]
[1758384997589,9.84700571,240.89,240.86,0.89]